[Event "Open Nuevo Centro. Jornada 1"]
[Site "Chess.com"]
[Date "2020.06.19"]
[Round "4"]
[White "Mart�nez Carvajal, Juan Francisco"]
[Black "Romero Barkouk, Rayan "]
[Result "1-0"]
[WhiteElo "1767"]
[BlackElo "1097"]
[TimeControl "180+2"]
[EndTime "11:11:49 PDT"]
[Termination "Victoria de JuanFcoMtnezCarvajal por abandono"]

1. Nf3 {[%clk 0:03:01.9]} 1... d5 {[%clk 0:02:58.9]} 2. c4 {[%clk 0:03:02.2]}
2... dxc4 {[%clk 0:02:52.5]} 3. Na3 {[%clk 0:03:00.7]} 3... Nf6 {[%clk
0:02:48.3]} 4. Nxc4 {[%clk 0:03:00.6]} 4... Nc6 {[%clk 0:02:44.3]} 5. d4 {[%clk
0:02:58.7]} 5... Be6 {[%clk 0:02:39.7]} 6. e3 {[%clk 0:02:46.9]} 6... Bxc4
{[%clk 0:02:37.8]} 7. Bxc4 {[%clk 0:02:46.3]} 7... e5 {[%clk 0:02:35.7]} 8. Nxe5
{[%clk 0:02:37.6]} 8... Nxe5 {[%clk 0:02:34.6]} 9. dxe5 {[%clk 0:02:38.6]} 9...
Qxd1+ {[%clk 0:02:33.3]} 10. Kxd1 {[%clk 0:02:39.6]} 10... O-O-O+ {[%clk
0:02:32.2]} 11. Ke2 {[%clk 0:02:37.2]} 11... Ne4 {[%clk 0:02:28.1]} 12. Bxf7
{[%clk 0:02:31.6]} 12... Bb4 {[%clk 0:02:12.1]} 13. f3 {[%clk 0:02:21.1]} 13...
Nd2 {[%clk 0:02:08.9]} 14. Rd1 {[%clk 0:02:07.6]} 14... Nc4 {[%clk 0:01:57.9]}
15. Bxc4 {[%clk 0:02:04]} 15... Rxd1 {[%clk 0:01:54]} 16. Kxd1 {[%clk
0:02:04.2]} 16... Re8 {[%clk 0:01:50.7]} 17. e6 {[%clk 0:01:57]} 17... Rd8+
{[%clk 0:01:49.7]} 18. Ke2 {[%clk 0:01:56.5]} 18... Rd6 {[%clk 0:01:49.8]} 19.
a3 {[%clk 0:01:55.1]} 19... Ba5 {[%clk 0:01:47.6]} 20. b4 {[%clk 0:01:55.7]}
20... Bb6 {[%clk 0:01:48.1]} 21. Bb2 {[%clk 0:01:56.3]} 21... Rc6 {[%clk
0:01:47.4]} 22. Bb3 {[%clk 0:01:53.6]} 22... a6 {[%clk 0:01:41.1]} 23. Rd1
{[%clk 0:01:53.7]} 23... Kb8 {[%clk 0:01:32.3]} 24. e7 {[%clk 0:01:54]} 1

[Event "Open Nuevo Centro. Jornada 1"]
[Site "Chess.com"]
[Date "2020.06.19"]
[Round "4"]
[White "Ferrando Lacruz, Nicol�s "]
[Black "Galiana Ferrer, Oscar"]
[Result "1-0"]
[WhiteElo "1206"]
[BlackElo "829"]
[TimeControl "180+2"]
[EndTime "11:12:11 PDT"]
[Termination "Victoria de Nicolasvlc por jaque mate"]

1. d4 {[%clk 0:03:00.6]} 1... d5 {[%clk 0:03:00.3]} 2. Bf4 {[%clk 0:03:00.9]}
2... Nf6 {[%clk 0:02:59.8]} 3. Nf3 {[%clk 0:02:58.4]} 3... Nc6 {[%clk
0:03:00.4]} 4. e3 {[%clk 0:02:57.8]} 4... e6 {[%clk 0:03:01.4]} 5. Bd3 {[%clk
0:02:58.6]} 5... Bd6 {[%clk 0:03:02.3]} 6. Ne5 {[%clk 0:02:58.7]} 6... Bd7
{[%clk 0:02:57.4]} 7. Nd2 {[%clk 0:02:56.3]} 7... O-O {[%clk 0:02:57.4]} 8. Ndf3
{[%clk 0:02:56]} 8... Nb4 {[%clk 0:02:47.7]} 9. c3 {[%clk 0:02:54.3]} 9... Nxd3+
{[%clk 0:02:48.3]} 10. Qxd3 {[%clk 0:02:42.4]} 10... b6 {[%clk 0:02:36.4]} 11.
h4 {[%clk 0:02:37.2]} 11... c5 {[%clk 0:02:26.9]} 12. h5 {[%clk 0:02:32.9]}
12... cxd4 {[%clk 0:02:27.1]} 13. cxd4 {[%clk 0:02:32.7]} 13... a6 {[%clk
0:02:23.4]} 14. h6 {[%clk 0:02:31.5]} 14... gxh6 {[%clk 0:02:18.3]} 15. Bxh6
{[%clk 0:02:25]} 15... Bb5 {[%clk 0:02:14.9]} 16. Qc2 {[%clk 0:02:10.7]} 16...
Re8 {[%clk 0:02:13.7]} 17. Ng5 {[%clk 0:01:55.8]} 17... Bb4+ {[%clk 0:02:07.7]}
18. Kd1 {[%clk 0:01:52]} 18... Ne4 {[%clk 0:01:57.2]} 19. Nxe4 {[%clk
0:01:30.2]} 19... dxe4 {[%clk 0:01:57]} 20. Qxe4 {[%clk 0:01:29.7]} 20... Bd6
{[%clk 0:01:37.1]} 21. Qg4+ {[%clk 0:01:13.7]} 21... Kh8 {[%clk 0:01:33.2]} 22.
Qg7# {[%clk 0:01:12.9]} 1

[Event "Open Nuevo Centro. Jornada 1"]
[Site "Chess.com"]
[Date "2020.06.19"]
[Round "4"]
[White "Miranda Calvo, Max Rodrigo"]
[Black "Luque Saiz, Andres"]
[Result "0-1"]
[WhiteElo "1169"]
[BlackElo "1710"]
[TimeControl "180+2"]
[EndTime "11:12:16 PDT"]
[Termination "Victoria de Chuch1n por abandono"]

1. e4 {[%clk 0:03:01.9]} 1... c6 {[%clk 0:03:00]} 2. d4 {[%clk 0:03:00.7]} 2...
d5 {[%clk 0:03:01.9]} 3. e5 {[%clk 0:02:58.3]} 3... c5 {[%clk 0:03:02.6]} 4. c3
{[%clk 0:02:57.8]} 4... Nc6 {[%clk 0:03:03.2]} 5. Nf3 {[%clk 0:02:55.1]} 5...
Bg4 {[%clk 0:03:03.6]} 6. Be2 {[%clk 0:02:43.8]} 6... e6 {[%clk 0:03:02.9]} 7.
h3 {[%clk 0:02:41.1]} 7... Bxf3 {[%clk 0:03:03.2]} 8. Bxf3 {[%clk 0:02:40.2]}
8... Nge7 {[%clk 0:03:04.7]} 9. Be3 {[%clk 0:02:37.5]} 9... Nf5 {[%clk
0:03:05.3]} 10. Nd2 {[%clk 0:02:35.8]} 10... cxd4 {[%clk 0:02:53.9]} 11. cxd4
{[%clk 0:02:34.3]} 11... Nfxd4 {[%clk 0:02:53.5]} 12. Bxd4 {[%clk 0:02:34.8]}
12... Nxd4 {[%clk 0:02:55.4]} 13. Qa4+ {[%clk 0:02:34.8]} 13... Nc6 {[%clk
0:02:55.7]} 14. Rc1 {[%clk 0:02:31]} 14... Qd7 {[%clk 0:02:48.1]} 15. Nb3 {[%clk
0:02:28.5]} 15... Nxe5 {[%clk 0:02:39.5]} 16. Qxd7+ {[%clk 0:02:24.4]} 16...
Kxd7 {[%clk 0:02:41.4]} 17. O-O {[%clk 0:02:17.6]} 17... Nxf3+ {[%clk
0:02:41.6]} 18. gxf3 {[%clk 0:02:17.7]} 18... b6 {[%clk 0:02:36]} 19. Rc2 {[%clk
0:02:16.6]} 19... Bd6 {[%clk 0:02:36.3]} 20. Rfc1 {[%clk 0:02:16.2]} 20... Rac8
{[%clk 0:02:37.7]} 21. Rxc8 {[%clk 0:02:13]} 21... Rxc8 {[%clk 0:02:39.6]} 22.
Rxc8 {[%clk 0:02:14]} 22... Kxc8 {[%clk 0:02:41.5]} 23. Kf1 {[%clk 0:02:15]}
23... Kc7 {[%clk 0:02:39.2]} 24. Ke2 {[%clk 0:02:15]} 24... Be5 {[%clk
0:02:37.2]} 25. Kd3 {[%clk 0:02:11.9]} 25... Bxb2 {[%clk 0:02:37.3]} 26. a4
{[%clk 0:02:06.3]} 26... Bf6 {[%clk 0:02:36]} 27. Nc1 {[%clk 0:02:04.4]} 27...
Kc6 {[%clk 0:02:35.2]} 28. Nb3 {[%clk 0:02:00.8]} 28... h5 {[%clk 0:02:30.8]}
29. Kc2 {[%clk 0:01:52.6]} 29... Bh4 {[%clk 0:02:30.4]} 30. Kd3 {[%clk 0:01:50]}
30... Bxf2 {[%clk 0:02:30.6]} 31. Kc3 {[%clk 0:01:43.2]} 31... g5 {[%clk
0:02:28.3]} 32. Kb4 {[%clk 0:01:42.1]} 32... f5 {[%clk 0:02:28.1]} 33. Ka3
{[%clk 0:01:40.3]} 33... g4 {[%clk 0:02:25.5]} 34. hxg4 {[%clk 0:01:38.1]} 34...
fxg4 {[%clk 0:02:27.4]} 35. fxg4 {[%clk 0:01:36.3]} 35... hxg4 {[%clk
0:02:29.3]} 36. Nd2 {[%clk 0:01:34.8]} 36... g3 {[%clk 0:02:29]} 37. Nf3 {[%clk
0:01:35.7]} 37... g2 {[%clk 0:02:27.5]} 38. Ne5+ {[%clk 0:01:30.8]} 38... Kd6
{[%clk 0:02:25.7]} 39. Nf3 {[%clk 0:01:27.4]} 39... e5 {[%clk 0:02:26.3]} 40.
Ng1 {[%clk 0:01:28.7]} 0

[Event "Open Nuevo Centro. Jornada 1"]
[Site "Chess.com"]
[Date "2020.06.19"]
[Round "4"]
[White "Deusa Ballesteros, Luis Miguel"]
[Black "Sanchis Bon, Sergi"]
[Result "1-0"]
[WhiteElo "1504"]
[BlackElo "966"]
[TimeControl "180+2"]
[EndTime "11:12:17 PDT"]
[Termination "Victoria de luma2 por jaque mate"]

1. d4 {[%clk 0:03:01.9]} 1... Nf6 {[%clk 0:02:57.1]} 2. c4 {[%clk 0:03:03.2]}
2... e6 {[%clk 0:02:48.3]} 3. Nc3 {[%clk 0:03:03.7]} 3... Be7 {[%clk 0:02:46.1]}
4. e4 {[%clk 0:03:03.2]} 4... d6 {[%clk 0:02:41.2]} 5. Nf3 {[%clk 0:03:01.9]}
5... Nbd7 {[%clk 0:02:38.2]} 6. Bd3 {[%clk 0:03:01.5]} 6... b6 {[%clk
0:02:38.6]} 7. d5 {[%clk 0:03:01]} 7... exd5 {[%clk 0:02:34.1]} 8. exd5 {[%clk
0:03:00.4]} 8... O-O {[%clk 0:02:29.3]} 9. O-O {[%clk 0:03:00.6]} 9... Bb7
{[%clk 0:02:24.8]} 10. Re1 {[%clk 0:02:59.8]} 10... c6 {[%clk 0:02:25.1]} 11.
dxc6 {[%clk 0:02:58]} 11... Bxc6 {[%clk 0:02:25.8]} 12. Ne4 {[%clk 0:02:54.3]}
12... Nxe4 {[%clk 0:02:24.1]} 13. Bxe4 {[%clk 0:02:54.7]} 13... Bxe4 {[%clk
0:02:24.5]} 14. Rxe4 {[%clk 0:02:56.6]} 14... Nf6 {[%clk 0:02:24]} 15. Re2
{[%clk 0:02:54.6]} 15... Rc8 {[%clk 0:02:02.3]} 16. b3 {[%clk 0:02:53.5]} 16...
Ne4 {[%clk 0:01:54.1]} 17. Rxe4 {[%clk 0:02:48.4]} 17... f5 {[%clk 0:01:48.9]}
18. Re6 {[%clk 0:02:44.3]} 18... g5 {[%clk 0:01:40.8]} 19. Bb2 {[%clk
0:02:43.5]} 19... g4 {[%clk 0:01:41.5]} 20. Nd2 {[%clk 0:02:42]} 20... Qe8
{[%clk 0:01:27.2]} 21. Qe2 {[%clk 0:02:40.9]} 21... Qh5 {[%clk 0:01:18.8]} 22.
Rxe7 {[%clk 0:02:38.7]} 22... Rce8 {[%clk 0:01:17.8]} 23. Re1 {[%clk 0:02:35.2]}
23... Rxe7 {[%clk 0:01:13.4]} 24. Qxe7 {[%clk 0:02:34.9]} 24... Rf7 {[%clk
0:01:00.7]} 25. Qxd6 {[%clk 0:02:30.2]} 25... g3 {[%clk 0:00:33.8]} 26. Re8+
{[%clk 0:02:28.6]} 26... Rf8 {[%clk 0:00:25.6]} 27. Qxf8# {[%clk 0:02:28.5]} 1

[Event "Open Nuevo Centro. Jornada 1"]
[Site "Chess.com"]
[Date "2020.06.19"]
[Round "4"]
[White "Movsisyan, Tigran"]
[Black "Teply Koutsky, David"]
[Result "0-1"]
[WhiteElo "1875"]
[BlackElo "1669"]
[TimeControl "180+2"]
[EndTime "11:12:23 PDT"]
[Termination "Victoria de Mrchessmashine por abandono"]

1. d4 {[%clk 0:03:01.9]} 1... e6 {[%clk 0:03:00]} 2. c4 {[%clk 0:03:03.4]} 2...
f5 {[%clk 0:03:00.2]} 3. Nc3 {[%clk 0:03:04.8]} 3... Nf6 {[%clk 0:03:01.2]} 4.
Bf4 {[%clk 0:03:06]} 4... d5 {[%clk 0:03:01.8]} 5. e3 {[%clk 0:03:07.2]} 5... c6
{[%clk 0:03:02]} 6. Bd3 {[%clk 0:03:08.7]} 6... Bd6 {[%clk 0:03:02]} 7. Bxd6
{[%clk 0:03:08.2]} 7... Qxd6 {[%clk 0:03:02.4]} 8. Nf3 {[%clk 0:03:10.1]} 8...
Nbd7 {[%clk 0:03:02.1]} 9. Qc2 {[%clk 0:03:11.5]} 9... O-O {[%clk 0:03:01.7]}
10. h3 {[%clk 0:03:12.7]} 10... Ne4 {[%clk 0:03:02.2]} 11. O-O-O {[%clk
0:03:11]} 11... a6 {[%clk 0:02:49.2]} 12. g4 {[%clk 0:03:11.7]} 12... Ndf6
{[%clk 0:02:42.7]} 13. gxf5 {[%clk 0:03:11]} 13... exf5 {[%clk 0:02:42.8]} 14.
Ne5 {[%clk 0:03:12]} 14... Nxc3 {[%clk 0:02:39.2]} 15. Qxc3 {[%clk 0:03:10.1]}
15... Ne4 {[%clk 0:02:39.9]} 16. Qc2 {[%clk 0:03:09.1]} 16... dxc4 {[%clk
0:02:36.7]} 17. Bxe4 {[%clk 0:03:09.7]} 17... fxe4 {[%clk 0:02:35.5]} 18. Qxe4
{[%clk 0:03:04.4]} 18... Rxf2 {[%clk 0:02:33.6]} 19. Rhg1 {[%clk 0:02:50.8]}
19... Bf5 {[%clk 0:02:27]} 20. Rxg7+ {[%clk 0:02:29.6]} 20... Kxg7 {[%clk
0:02:22.7]} 21. Rg1+ {[%clk 0:02:30.9]} 21... Kf8 {[%clk 0:02:16.8]} 22. Qh4
{[%clk 0:02:27.1]} 22... Rc2+ {[%clk 0:02:11.1]} 23. Kd1 {[%clk 0:02:25.8]}
23... Rxb2 {[%clk 0:02:04.4]} 24. Nxc4 {[%clk 0:01:46.1]} 24... Rb1+ {[%clk
0:01:59.9]} 25. Kd2 {[%clk 0:01:47.5]} 25... Qb4+ {[%clk 0:02:00.3]} 26. Ke2
{[%clk 0:01:44.1]} 26... Qxc4+ {[%clk 0:02:01]} 27. Kf3 {[%clk 0:01:45.6]} 27...
Qd5+ {[%clk 0:01:57.1]} 28. e4 {[%clk 0:01:43.2]} 28... Bxe4+ {[%clk 0:01:50.3]}
29. Ke3 {[%clk 0:01:43.1]} 29... Rxg1 {[%clk 0:01:39.4]} 30. Qf6+ {[%clk
0:01:43.7]} 30... Qf7 {[%clk 0:01:39.8]} 31. Qd6+ {[%clk 0:01:43.7]} 31... Kg8
{[%clk 0:01:34.5]} 0

[Event "Open Nuevo Centro. Jornada 1"]
[Site "Chess.com"]
[Date "2020.06.19"]
[Round "4"]
[White "Saiz Sapena, Veronica"]
[Black "Lupu, Alexandru Mihai"]
[Result "1-0"]
[WhiteElo "1578"]
[BlackElo "1018"]
[TimeControl "180+2"]
[EndTime "11:12:31 PDT"]
[Termination "Victoria de Titina1 por tiempo"]

1. e4 {[%clk 0:03:01.9]} 1... e5 {[%clk 0:02:59.8]} 2. d4 {[%clk 0:02:59]} 2...
Nc6 {[%clk 0:02:50.7]} 3. Nf3 {[%clk 0:02:59.5]} 3... exd4 {[%clk 0:02:47.1]} 4.
Bc4 {[%clk 0:03:00.1]} 4... Nf6 {[%clk 0:02:40.9]} 5. e5 {[%clk 0:02:57.4]} 5...
Nh5 {[%clk 0:02:24]} 6. Nxd4 {[%clk 0:02:53.9]} 6... Nxe5 {[%clk 0:02:21.5]} 7.
Be2 {[%clk 0:02:51.5]} 7... Nf6 {[%clk 0:02:15.1]} 8. O-O {[%clk 0:02:51.2]}
8... Bc5 {[%clk 0:02:11.4]} 9. Nf3 {[%clk 0:02:51]} 9... Nc6 {[%clk 0:02:10.9]}
10. c3 {[%clk 0:02:46.5]} 10... O-O {[%clk 0:02:08.6]} 11. b4 {[%clk 0:02:46.7]}
11... Bb6 {[%clk 0:01:56.7]} 12. a4 {[%clk 0:02:46.5]} 12... d5 {[%clk
0:01:48.8]} 13. a5 {[%clk 0:02:45.1]} 13... Bf5 {[%clk 0:01:20]} 14. axb6 {[%clk
0:02:44]} 14... axb6 {[%clk 0:01:19.1]} 15. Rxa8 {[%clk 0:02:43.6]} 15... Qxa8
{[%clk 0:01:18.8]} 16. Nbd2 {[%clk 0:02:43.6]} 16... Re8 {[%clk 0:01:05.1]} 17.
Nh4 {[%clk 0:02:40]} 17... Be6 {[%clk 0:00:37.3]} 18. Bb5 {[%clk 0:02:39.4]}
18... Re7 {[%clk 0:00:22.7]} 19. Bxc6 {[%clk 0:02:39.4]} 19... bxc6 {[%clk
0:00:22.3]} 20. Ndf3 {[%clk 0:02:40]} 20... Qd8 {[%clk 0:00:19.6]} 21. Nd4
{[%clk 0:02:38.2]} 21... c5 {[%clk 0:00:17.7]} 22. Nxe6 {[%clk 0:02:38]} 22...
Rxe6 {[%clk 0:00:16.3]} 23. bxc5 {[%clk 0:02:35.7]} 23... bxc5 {[%clk
0:00:16.4]} 24. Bg5 {[%clk 0:02:36]} 24... c6 {[%clk 0:00:12.3]} 25. Nf5 {[%clk
0:02:36.3]} 1

[Event "Open Nuevo Centro. Jornada 1"]
[Site "Chess.com"]
[Date "2020.06.19"]
[Round "4"]
[White "Rodriguez, Mathias"]
[Black "Clement G�mez, Jos� Antonio"]
[Result "0-1"]
[WhiteElo "2012"]
[BlackElo "2491"]
[TimeControl "180+2"]
[EndTime "11:12:33 PDT"]
[Termination "Victoria de P4AD por abandono"]

1. e4 {[%clk 0:02:53.5]} 1... c5 {[%clk 0:03:00.2]} 2. Nf3 {[%clk 0:02:54.1]}
2... e6 {[%clk 0:03:01.1]} 3. d4 {[%clk 0:02:54.9]} 3... cxd4 {[%clk 0:03:03]}
4. Nxd4 {[%clk 0:02:56.8]} 4... Nc6 {[%clk 0:03:04.9]} 5. Nb3 {[%clk 0:02:56.3]}
5... Nf6 {[%clk 0:03:04.8]} 6. Bd3 {[%clk 0:02:57.2]} 6... d5 {[%clk 0:03:03.9]}
7. exd5 {[%clk 0:02:53.5]} 7... Nxd5 {[%clk 0:03:05.8]} 8. O-O {[%clk 0:02:52]}
8... Be7 {[%clk 0:03:06.4]} 9. Nc3 {[%clk 0:02:46.1]} 9... Nxc3 {[%clk
0:03:06.5]} 10. bxc3 {[%clk 0:02:48]} 10... O-O {[%clk 0:03:08.2]} 11. c4 {[%clk
0:02:41.7]} 11... e5 {[%clk 0:03:01.2]} 12. Bb2 {[%clk 0:02:40.2]} 12... f5
{[%clk 0:02:51.2]} 13. f3 {[%clk 0:02:35.8]} 13... a5 {[%clk 0:02:48]} 14. a4
{[%clk 0:02:31.6]} 14... Be6 {[%clk 0:02:40.9]} 15. Re1 {[%clk 0:02:30.9]} 15...
Qc7 {[%clk 0:02:41]} 16. Qe2 {[%clk 0:02:29.1]} 16... Bf6 {[%clk 0:02:37]} 17.
Nc5 {[%clk 0:02:29.5]} 17... Bc8 {[%clk 0:02:37.7]} 18. Rad1 {[%clk 0:02:24.6]}
18... b6 {[%clk 0:02:37.4]} 19. Nb3 {[%clk 0:02:25.3]} 19... Be6 {[%clk
0:02:35.3]} 20. c5 {[%clk 0:02:14.1]} 20... Rae8 {[%clk 0:02:19]} 21. Kh1 {[%clk
0:02:05.5]} 21... e4 {[%clk 0:02:17.4]} 22. fxe4 {[%clk 0:01:29.6]} 22... Bxb2
{[%clk 0:02:15.5]} 23. exf5 {[%clk 0:01:29.2]} 23... Bf7 {[%clk 0:02:14.3]} 24.
Qf3 {[%clk 0:01:23.6]} 24... Nb4 {[%clk 0:02:01.2]} 0

[Event "Open Nuevo Centro. Jornada 1"]
[Site "Chess.com"]
[Date "2020.06.19"]
[Round "4"]
[White "Furio Martinez, Francisco"]
[Black "Camison Zornoza, Cesar"]
[Result "0-1"]
[WhiteElo "928"]
[BlackElo "1406"]
[TimeControl "180+2"]
[EndTime "11:12:37 PDT"]
[Termination "Victoria de cczchess2019 por abandono"]

1. d4 {[%clk 0:03:01.9]} 1... Nf6 {[%clk 0:03:00.4]} 2. e3 {[%clk 0:03:03.8]}
2... c5 {[%clk 0:03:01.1]} 3. Nf3 {[%clk 0:03:04.6]} 3... cxd4 {[%clk
0:03:02.2]} 4. exd4 {[%clk 0:03:04.9]} 4... d6 {[%clk 0:03:02.8]} 5. Be2 {[%clk
0:03:05.6]} 5... g6 {[%clk 0:03:04.2]} 6. O-O {[%clk 0:03:06.4]} 6... Bg7 {[%clk
0:03:05.8]} 7. Nbd2 {[%clk 0:03:05.9]} 7... O-O {[%clk 0:03:07.4]} 8. b3 {[%clk
0:03:06.8]} 8... a5 {[%clk 0:03:06.8]} 9. Bb2 {[%clk 0:03:08.1]} 9... Nc6 {[%clk
0:03:06]} 10. d5 {[%clk 0:03:08.2]} 10... Nb4 {[%clk 0:03:04.6]} 11. Bxf6 {[%clk
0:03:06]} 11... Bxf6 {[%clk 0:03:04.7]} 12. Rb1 {[%clk 0:02:52.5]} 12... Nxa2
{[%clk 0:03:00.5]} 13. Rb2 {[%clk 0:02:47.8]} 13... Nb4 {[%clk 0:03:01.2]} 14.
Rb1 {[%clk 0:02:47.7]} 14... Bf5 {[%clk 0:02:58.9]} 15. Rc1 {[%clk 0:02:45.9]}
15... Rc8 {[%clk 0:02:58.3]} 16. c3 {[%clk 0:02:45.6]} 16... Bxc3 {[%clk
0:02:48]} 17. Nc4 {[%clk 0:02:40.9]} 17... Bg7 {[%clk 0:02:41.5]} 18. Nb6 {[%clk
0:02:39.7]} 18... Rxc1 {[%clk 0:02:39.6]} 19. Qxc1 {[%clk 0:02:39.2]} 19... Qxb6
{[%clk 0:02:40.1]} 20. Qg5 {[%clk 0:02:29.1]} 20... Bf6 {[%clk 0:02:34.8]} 21.
Qh6 {[%clk 0:02:27.6]} 21... Rc8 {[%clk 0:02:32.1]} 22. Qe3 {[%clk 0:02:04.4]}
22... Qxe3 {[%clk 0:02:29.5]} 23. fxe3 {[%clk 0:02:03.6]} 23... Rc2 {[%clk
0:02:25.3]} 24. Bd1 {[%clk 0:01:55.7]} 24... Rc3 {[%clk 0:02:19]} 25. Nd4 {[%clk
0:01:37.5]} 25... Bxd4 {[%clk 0:02:18.4]} 26. exd4 {[%clk 0:01:36.8]} 26... Bc2
{[%clk 0:02:08.7]} 27. Bxc2 {[%clk 0:01:35.9]} 27... Rxc2 {[%clk 0:02:07.3]} 28.
h3 {[%clk 0:01:29.3]} 28... Nxd5 {[%clk 0:02:07.6]} 29. b4 {[%clk 0:01:25.8]}
29... axb4 {[%clk 0:02:07.9]} 30. Rb1 {[%clk 0:01:24.3]} 30... Rd2 {[%clk
0:02:06.1]} 31. Ra1 {[%clk 0:01:17.5]} 31... b3 {[%clk 0:02:05.3]} 32. Rb1
{[%clk 0:01:12.2]} 32... b2 {[%clk 0:02:05.6]} 33. Kf1 {[%clk 0:01:11.9]} 33...
Nc3 {[%clk 0:02:06]} 34. Ke1 {[%clk 0:01:11.7]} 34... Nxb1 {[%clk 0:02:05.2]}
0

[Event "Open Nuevo Centro. Jornada 1"]
[Site "Chess.com"]
[Date "2020.06.19"]
[Round "4"]
[White "Selva Viu, Antonio"]
[Black "Limaymanta Solis, Luis Anderson"]
[Result "1-0"]
[WhiteElo "897"]
[BlackElo "1036"]
[TimeControl "180+2"]
[EndTime "11:12:52 PDT"]
[Termination "Victoria de tonigamer777 por jaque mate"]

1. e4 {[%clk 0:02:53.6]} 1... e6 {[%clk 0:03:01.9]} 2. Bc4 {[%clk 0:02:47.6]}
2... g6 {[%clk 0:03:00.6]} 3. Nf3 {[%clk 0:02:42.7]} 3... Nf6 {[%clk 0:03:00.5]}
4. d3 {[%clk 0:02:37.2]} 4... Bb4+ {[%clk 0:02:58.8]} 5. c3 {[%clk 0:02:33.9]}
5... Be7 {[%clk 0:02:59.8]} 6. Ne5 {[%clk 0:02:30.7]} 6... O-O {[%clk 0:03:00]}
7. O-O {[%clk 0:02:06.2]} 7... c5 {[%clk 0:02:54.4]} 8. Bh6 {[%clk 0:02:02.8]}
8... Re8 {[%clk 0:02:50.9]} 9. Nd2 {[%clk 0:01:55.9]} 9... Qc7 {[%clk
0:02:52.1]} 10. d4 {[%clk 0:01:45.2]} 10... cxd4 {[%clk 0:02:48.6]} 11. cxd4
{[%clk 0:01:47.1]} 11... Nc6 {[%clk 0:02:48.4]} 12. Nxc6 {[%clk 0:01:37.9]}
12... Qxc6 {[%clk 0:02:48.5]} 13. Rc1 {[%clk 0:01:26.8]} 13... Nxe4 {[%clk
0:02:40.6]} 14. Nxe4 {[%clk 0:01:07.5]} 14... Qxe4 {[%clk 0:02:40.6]} 15. Re1
{[%clk 0:01:07]} 15... Qh4 {[%clk 0:02:36.7]} 16. Qd2 {[%clk 0:00:55.2]} 16...
f5 {[%clk 0:02:29]} 17. g3 {[%clk 0:00:34.2]} 17... Qh5 {[%clk 0:02:24.7]} 18.
Be2 {[%clk 0:00:18.2]} 18... Qh3 {[%clk 0:02:16.3]} 19. Bf1 {[%clk 0:00:18.8]}
19... Qg4 {[%clk 0:02:09.6]} 20. f3 {[%clk 0:00:18.4]} 20... Qxf3 {[%clk
0:02:05.2]} 21. Bg2 {[%clk 0:00:20.3]} 21... Qg4 {[%clk 0:02:03.5]} 22. Qe3
{[%clk 0:00:17.9]} 22... Rb8 {[%clk 0:01:56.5]} 23. Qe5 {[%clk 0:00:18.6]} 23...
Ra8 {[%clk 0:01:52.7]} 24. Qg7# {[%clk 0:00:17.8]} 1

[Event "Open Nuevo Centro. Jornada 1"]
[Site "Chess.com"]
[Date "2020.06.19"]
[Round "4"]
[White "Rabbani Perez, Oumaima "]
[Black "Garrido Barona, An�bal"]
[Result "1-0"]
[WhiteElo "728"]
[BlackElo "548"]
[TimeControl "180+2"]
[EndTime "11:13:01 PDT"]
[Termination "Victoria de OumaimaMaria por tiempo"]

1. e3 {[%clk 0:03:01.9]} 1... d5 {[%clk 0:02:52.4]} 2. d3 {[%clk 0:03:00.3]}
2... Nc6 {[%clk 0:02:51.6]} 3. Bd2 {[%clk 0:02:58.8]} 3... Nh6 {[%clk
0:02:45.6]} 4. Be2 {[%clk 0:02:57.5]} 4... Be6 {[%clk 0:02:28.4]} 5. Nh3 {[%clk
0:02:54.7]} 5... g5 {[%clk 0:02:30.3]} 6. Nxg5 {[%clk 0:02:51.1]} 6... f6 {[%clk
0:02:32.2]} 7. Nxe6 {[%clk 0:02:49.1]} 7... Qd6 {[%clk 0:02:23.4]} 8. Ng7+
{[%clk 0:02:41]} 8... Kf7 {[%clk 0:02:10.3]} 9. Nh5 {[%clk 0:02:34.9]} 9... d4
{[%clk 0:01:35]} 10. exd4 {[%clk 0:02:16.5]} 10... Nxd4 {[%clk 0:01:20.6]} 11.
Bf3 {[%clk 0:02:02.8]} 11... Ndf5 {[%clk 0:00:55.5]} 12. Bf4 {[%clk 0:01:55.1]}
12... e5 {[%clk 0:00:38]} 13. Bxh6 {[%clk 0:01:51.2]} 13... Bxh6 {[%clk
0:00:36.1]} 14. Bxb7 {[%clk 0:01:49.7]} 14... Rab8 {[%clk 0:00:26.9]} 15. Be4
{[%clk 0:01:47.4]} 15... Nh4 {[%clk 0:00:17.7]} 16. Ng3 {[%clk 0:01:42.6]} 16...
Qd4 {[%clk 0:00:17.4]} 17. Ne2 {[%clk 0:01:41.8]} 17... Qxb2 {[%clk 0:00:16.8]}
18. Nd2 {[%clk 0:01:40.6]} 18... Nxg2+ {[%clk 0:00:12.4]} 19. Kf1 {[%clk
0:01:40.1]} 1